bitfinex-derivatives/quotes_ETHF0:USTF0_20250502
["timestamp","ask_amount","ask_price","bid_price","bid_amount"]
[1746205554045,6.28977948,1848.6,1848.5,3.696]
[1746205554341,6.28977948,1848.6,1848.5,4.77747]
[1746205554741,6.28977948,1848.6,1848.5,3.696]
[1746205554742,4.70637948,1848.6,1848.5,3.696]
[1746205555140,1.49857948,1848.6,1848.5,3.696]
[1746205555942,4.70637948,1848.6,1848.5,3.696]
[1746205556839,6.36327948,1848.6,1848.5,3.696]
[1746205557246,1.08164,1848.2,1848.1,4.28946]
[1746205557547,1.08186,1847.9,1847.8,1.08185]
[1746205557741,1.08186,1847.9,1847.8,1.91765]
[1746205558044,1.49899948,1847.9,1847.8,8.00027398]
[1746205558245,1.49899948,1847.9,1847.8,11.69627398]
[1746205558645,1.49899948,1847.9,1847.8,14.45245398]
[1746205558852,0.41713948,1847.9,1847.8,14.45245398]
[1746205559145,1.49895948,1847.9,1847.8,14.45245398]
[1746205559748,0.41713948,1847.9,1847.8,14.45245398]
[1746205559941,1.49895948,1847.9,1847.8,14.45245398]
[1746205560338,0.41713948,1847.9,1847.8,14.45245398]
[1746205560944,0.41713948,1847.9,1847.8,18.47365398]
[1746205561840,2.70397,1848.3,1847.8,26.00977398]
[1746205562036,1.08176,1848.1,1848.0,1.08173]
[1746205563248,1.08176,1848.0,1847.9,1.6273]
[1746205563451,1.08182,1847.9,1847.8,1.6492]
[1746205563649,2.66342,1847.9,1847.8,1.6492]
[1746205564152,1.08182,1847.9,1847.8,6.42708]
[1746205564449,1.08182,1847.9,1847.8,8.04938]
[1746205564851,1.08182,1847.9,1847.8,6.9675]
[1746205565045,1.08193,1847.7,1847.6,4.28978]
[1746205565444,1.08193,1847.7,1847.6,5.91208]
[1746205565752,2.68472,1847.8,1847.7,1.08193]
[1746205565949,2.68472,1847.8,1847.7,2.70423]
[1746205566259,2.68472,1847.8,1847.7,6.40023]
[1746205566446,1.08184,1847.9,1847.8,1.08188]
[1746205566640,1.08184,1847.9,1847.8,2.70418]
[1746205566842,3.47951,1848.0,1847.9,1.08182]
[1746205567052,1.08181,1848.0,1847.9,3.2063]
[1746205567250,2.72131,1848.0,1847.9,3.696]
[1746205568154,1.08188,1847.8,1847.7,2.68719]
[1746205569153,1.08188,1847.8,1847.7,6.38319]
[1746205569454,2.72138,1847.8,1847.7,6.38319]
[1746205569956,1.6395,1847.8,1847.7,6.38319]
[1746205570147,2.72138,1847.8,1847.7,6.38319]
[1746205571547,2.72138,1847.8,1847.7,5.3013]
[1746205572751,2.72138,1847.8,1847.7,3.696]
[1746205573749,2.72138,1847.8,1847.7,4.77793]
[1746205573944,2.72138,1847.8,1847.7,3.696]
[1746205574148,3.13449918,1847.8,1847.7,3.696]
[1746205574345,3.13449918,1847.8,1847.7,4.77793]
[1746205574548,3.13449918,1847.8,1847.7,5.3602]
[1746205575157,3.13449918,1847.8,1847.7,6.44213]
[1746205575355,1.49499918,1847.8,1847.7,6.44213]
[1746205576359,1.49499918,1847.8,1847.7,5.3602]
[1746205576561,1.49499918,1847.8,1847.7,6.44213]
[1746205577160,1.49499918,1847.8,1847.7,5.3602]
[1746205577662,1.49499918,1847.8,1847.7,6.44213]
[1746205577862,1.49499918,1847.8,1847.7,5.3602]
[1746205578063,3.12449918,1847.8,1847.7,5.3602]
[1746205578363,8.12449918,1847.8,1847.7,2.85853244]
[1746205578762,8.96579918,1847.8,1847.7,2.85853244]
[1746205579261,1.08205,1847.5,1847.4,1.6362]
[1746205579460,4.70296918,1847.5,1847.4,2.71831]
[1746205579662,4.70296918,1847.5,1847.4,1.6362]
[1746205580055,1.49516918,1847.5,1847.4,1.6362]
[1746205580261,1.49516918,1847.5,1847.4,5.3322]
[1746205580757,1.49516918,1847.5,1847.4,6.41431]
[1746205581458,1.49516918,1847.5,1847.4,5.3322]
[1746205581759,4.70296918,1847.5,1847.4,5.3322]
[1746205582162,1.49516918,1847.5,1847.4,6.41431]
[1746205582763,1.49516918,1847.5,1847.4,5.3322]
[1746205583357,4.70296918,1847.5,1847.4,5.3322]
[1746205583764,1.49516918,1847.5,1847.4,5.3322]
[1746205583963,1.49532829,1847.5,1847.4,5.3322]
[1746205584263,4.81138268,1847.5,1847.4,3.696]
[1746205586264,4.81138268,1847.5,1847.4,4.5096]
[1746205587464,4.81138268,1847.5,1847.4,3.696]
[1746205587966,9.81138268,1847.5,1847.4,3.696]
[1746205588153,1.08223,1847.2,1847.1,0.859]
[1746205588356,1.49550829,1847.2,1847.1,0.859]
[1746205588556,1.49550829,1847.2,1847.1,2.5593]
[1746205588764,3.19070829,1847.2,1847.1,2.5593]
[1746205589358,3.19070829,1847.2,1847.1,3.64159]
[1746205589559,3.19070829,1847.2,1847.1,2.5593]
[1746205591459,1.08229,1847.1,1847.0,4.5042]
[1746205591863,6.39216829,1847.1,1847.0,3.696]
[1746205592164,6.39216829,1847.1,1846.9,2.4337]
[1746205592165,1.08234,1847.0,1846.9,6.1297]
[1746205592466,3.18441829,1847.0,1846.9,3.696]
[1746205593363,1.49561829,1847.0,1846.9,4.7784]
[1746205594070,1.49561829,1847.0,1846.9,3.696]
[1746205595365,3.12731829,1847.0,1846.9,3.696]
[1746205595756,1.49561829,1847.0,1846.9,3.696]
[1746205595961,1.49561829,1847.0,1846.9,5.3969]
[1746205596170,0.41327829,1847.0,1846.9,6.4793]
[1746205596370,1.49561829,1847.0,1846.9,6.4793]
[1746205599672,1.49561829,1847.0,1846.9,5.3969]
[1746205599872,3.16701829,1847.0,1846.9,6.4793]
[1746205600074,1.49561829,1847.0,1846.9,6.4793]
[1746205600571,1.49561829,1847.0,1846.9,3.696]
[1746205600773,3.22721829,1847.0,1846.9,4.7784]
[1746205601372,3.22721829,1847.0,1846.9,3.696]
[1746205601564,3.22721829,1847.0,1846.9,4.7784]
[1746205601765,3.22721829,1847.0,1846.9,6.3981]
[1746205602271,3.22721829,1847.0,1846.9,5.3157]
[1746205603168,3.22721829,1847.0,1846.9,6.3981]
[1746205603375,1.49561829,1847.0,1846.9,6.3981]
[1746205604377,1.49561829,1847.0,1846.9,5.3157]
[1746205604573,3.16501829,1847.0,1846.9,5.3157]
[1746205604776,3.16501829,1847.0,1846.9,3.696]
[1746205605171,4.78859829,1847.0,1846.5,1.08259]
[1746205605371,1.08261,1846.6,1846.5,1.08259]
[1746205605581,1.08264,1846.5,1846.4,5.14186]
[1746205605779,1.49591829,1846.6,1846.5,1.08264]
[1746205606070,1.49591829,1846.6,1846.5,4.77864]
[1746205606675,0.41327829,1846.6,1846.5,4.77864]
[1746205606880,1.49585829,1846.6,1846.5,3.696]
[1746205607376,1.49585829,1846.6,1846.5,4.77864]
[1746205607572,1.49585829,1846.6,1846.5,3.696]
[1746205607772,1.49585829,1846.6,1846.5,4.77864]
[1746205609681,1.49585829,1846.6,1845.7,3.8613271]
[1746205609682,8.62107829,1846.6,1845.7,3.8613271]
[1746205609974,8.62107829,1846.6,1845.5,13.01203971]
[1746205609975,1.08317,1845.6,1845.5,13.01203971]
[1746205610168,1.08322,1845.5,1845.4,17.63249964]
[1746205610367,1.08322,1845.5,1845.4,1.77136126]
[1746205610570,1.08322,1845.5,1845.4,1.26e-06]
[1746205610873,6.49649829,1845.5,1845.4,1.26e-06]
[1746205611072,6.49649829,1845.5,1845.4,3.69600126]
[1746205611280,6.4950545,1845.5,1845.4,2.54341126]
[1746205611775,6.92621435,1845.5,1845.4,1.44128126]
[1746205611977,6.92621435,1845.5,1845.4,0.21311126]
[1746205612173,1.08334,1845.3,1845.2,14.86390049]
[1746205612369,8.3199745,1845.3,1845.2,14.86390049]
[1746205612575,13.3199745,1845.3,1845.2,14.86390049]
[1746205613372,15.0586745,1845.3,1845.2,14.86390049]
[1746205615276,10.0586745,1845.3,1845.2,14.86390049]
[1746205615479,16.6838045,1845.3,1844.3,3.2078]
[1746205615677,1.08378,1844.6,1844.4,1.95857]
[1746205615983,2.70939,1844.6,1844.1,3.2078]
[1746205616173,3.2078,1844.3,1844.0,4.04331588]
[1746205616578,1.08401,1844.2,1844.0,4.04331588]
[1746205616880,1.08401,1844.2,1844.0,5.12739588]
[1746205617078,4.29177,1844.3,1844.1,1.08405]
[1746205617280,3.2078,1844.3,1844.0,4.04331588]
[1746205617485,1.1924881,1844.2,1844.1,1.7324]
[1746205617784,0.1084481,1844.2,1844.1,2.81645]
[1746205617981,0.1084481,1844.2,1844.1,7.81645]
[1746205618171,0.1084481,1844.2,1844.1,2.81645]
[1746205619281,0.1084481,1844.2,1844.1,7.81645]
[1746205620384,0.1084481,1844.2,1844.1,2.81645]
[1746205620681,0.1084481,1844.2,1844.1,7.81645]
[1746205621387,0.1084481,1844.2,1844.1,2.81645]
[1746205622086,1.0838,1844.6,1844.5,1.08381]
[1746205622279,1.08366,1844.8,1844.7,1.08366]
[1746205622585,1.08352,1845.0,1844.7,5.91704]
[1746205622781,1.0834,1845.3,1845.2,1.0834]
[1746205622986,2.70824,1845.4,1844.9,3.2078]
[1746205623284,1.08346,1845.2,1845.1,1.08346]
[1746205623476,1.08346,1845.2,1845.0,43.3823]
[1746205623477,1.08346,1845.1,1845.0,42.74917]
[1746205623675,1.08345,1845.2,1845.1,1.08346]
[1746205623880,1.08334,1845.4,1845.3,1.08332]
[1746205624274,1.08334,1845.3,1845.2,0.8171]
[1746205625184,1.08334,1845.3,1845.2,5.5965]
[1746205625381,6.7332664,1845.7,1845.2,7.22159]
[1746205625573,1.08313,1845.7,1845.6,4.29093]
[1746205625886,1.08299,1845.9,1845.8,1.083]
[1746205626185,1.083,1845.9,1845.8,3.696]
[1746205626487,4.2908,1845.9,1845.8,3.696]
[1746205626986,4.2908,1845.9,1845.8,4.77905]
[1746205627174,1.08296,1846.0,1845.9,1.08299]
[1746205627379,1.08299,1845.9,1845.8,4.77902]
[1746205627886,1.08298,1846.0,1845.8,4.779]
[1746205628085,4.8155,1846.1,1845.8,4.77901]
[1746205628387,1.08299,1845.9,1845.8,4.77901]
[1746205629283,4.8155,1846.1,1845.8,3.696]
[1746205629488,4.29079,1845.9,1845.8,3.696]
[1746205629789,3.2078,1845.9,1845.8,4.77905]
[1746205630183,4.29079,1845.9,1845.8,3.696]
[1746205630385,5.95899,1845.9,1845.8,3.5875519]
[1746205630585,11.47618461,1845.9,1845.8,3.5875519]
[1746205631183,1.08328,1845.4,1845.3,1.08331]
[1746205631379,1.08334,1845.3,1845.2,1.6737]
[1746205631587,1.08334,1845.3,1845.2,2.7571]
[1746205631779,1.08334,1845.3,1845.2,1.6737]
[1746205632082,4.29113,1845.4,1845.3,1.08334]
[1746205632297,1.08327,1845.5,1845.4,1.08328]
[1746205632590,3.2078,1845.6,1845.5,1.08322]
[1746205633094,0.10834823,1845.9,1845.8,1.08305]
[1746205633286,3.31614823,1845.9,1845.8,1.08305]
[1746205633486,0.10834823,1845.9,1845.8,1.08305]
[1746205633687,1.19133823,1845.9,1845.8,4.29085]
[1746205633887,0.10834823,1845.9,1845.8,4.29085]
[1746205634189,1.19133823,1845.9,1845.8,4.77905]
[1746205634584,0.10834823,1845.9,1845.8,7.98685]
[1746205634789,3.721,1846.6,1846.0,2.70726]
[1746205634990,9.0278,1846.7,1846.0,2.70726]
[1746205634991,1.08266,1846.5,1846.2,3.2078]
[1746205635291,1.08262,1846.6,1846.5,1.08264]
[1746205635594,1.08248,1846.8,1846.6,1.08253]
[1746205635893,4.80344,1846.9,1846.7,1.08247]
[1746205636087,1.08244,1846.9,1846.8,1.08246]
[1746205636291,1.08237,1847.0,1846.8,1.08246]
[1746205636591,1.08233,1847.1,1846.8,0.8438]
[1746205636787,1.49284224,1847.0,1846.8,1.92623]
[1746205636990,1.49284224,1847.0,1846.9,1.0824]
[1746205637191,1.0824,1846.9,1846.8,4.5398]
[1746205638495,1.0824,1846.9,1846.8,6.2515]
[1746205639589,1.08237,1847.0,1846.8,9.4593]
[1746205639793,1.08237,1847.0,1846.9,1.6283]
[1746205640086,1.08237,1847.0,1846.9,6.4067]
[1746205640087,0.41015933,1847.0,1846.9,6.4067]
[1746205640893,1.08224,1847.2,1847.1,1.08229]
[1746205641593,1.08215,1847.4,1847.2,1.08223]
[1746205641795,1.08215,1847.4,1847.3,1.6283]
[1746205642190,3.2078,1847.5,1847.3,5.3243]
[1746205642401,1.08211,1847.4,1847.3,5.3243]
[1746205642693,1.08211,1847.4,1847.3,3.696]
[1746205643893,1.5973,1847.6,1847.3,4.77815]
[1746205644102,1.08211,1847.4,1847.3,4.77811]
[1746205644398,1.08209,1847.5,1847.4,1.0821]
[1746205645001,1.08206,1847.5,1847.4,1.08206]
[1746205645292,1.08203,1847.6,1847.5,1.08204]
[1746205645797,1.08205,1847.5,1847.4,4.77807]
[1746205646096,1.08205,1847.5,1847.4,1.08207]
[1746205646693,6.42457,1847.9,1847.3,6.73643]
[1746205646899,1.08201,1847.6,1847.5,1.08201]
[1746205647096,1.08207,1847.5,1847.4,1.08207]
[1746205647804,1.08203,1847.6,1847.5,1.08204]
[1746205647997,1.6267,1847.7,1847.3,4.0311]
[1746205648303,1.08203,1847.6,1847.5,1.08202]
[1746205648596,2.70866,1847.7,1847.6,1.08199]
[1746205648796,1.08201,1847.6,1847.5,1.082]
[1746205649199,1.08201,1847.6,1847.5,4.778]
[1746205649705,2.70868,1847.7,1847.6,1.08199]
[1746205650301,1.08199,1847.6,1847.5,1.08203]
[1746205651603,1.08205,1847.5,1847.4,4.80005]
[1746205652403,1.08211,1847.4,1847.3,5.11324]
[1746205652607,1.08206,1847.5,1847.4,1.08205]
[1746205653302,6.08206,1847.5,1847.4,1.69535177]
[1746205653694,9.79927214,1847.5,1847.4,1.69535177]
[1746205654197,1.08223,1847.2,1847.1,1.08224]
[1746205654393,1.08223,1847.2,1847.0,1.0823]
[1746205654394,1.08232,1847.1,1847.0,1.0823]
[1746205654597,2.79442,1847.1,1847.0,1.0823]
[1746205654793,1.08246,1846.8,1846.7,9.63187]
[1746205654997,6.9238,1847.9,1846.7,13.5494]
[1746205655201,5.91264,1847.7,1847.3,1.08215]
[1746205655506,1.0821,1847.5,1847.3,1.08215]
[1746205655703,1.0821,1847.5,1847.4,1.08211]
[1746205655905,1.08212,1847.4,1847.3,1.08213]
[1746205656107,1.705,1847.5,1847.3,3.696]
[1746205656308,2.78708,1847.5,1847.4,1.08211]
[1746205656905,3.19820777,1847.5,1847.4,1.08211]
[1746205657703,2.11612777,1847.5,1847.3,1.6438]
[1746205658007,1.49323777,1847.4,1847.3,1.6438]
[1746205658206,3.20113777,1847.4,1847.3,1.6438]
[1746205658406,3.20113777,1847.4,1847.3,2.72597]
[1746205658601,0.41112777,1847.4,1847.3,2.72597]
[1746205659101,1.08211,1847.4,1847.3,2.72597]
[1746205659301,1.0821,1847.5,1847.4,1.0821]
[1746205659504,2.79,1847.5,1847.4,2.8022]
[1746205659703,3.20138586,1847.5,1847.4,2.8022]
[1746205660007,0.41138586,1847.5,1847.4,2.8022]
[1746205661203,0.41138586,1847.5,1847.4,6.4982]
[1746205662508,0.41138586,1847.5,1847.4,9.706]
[1746205663309,1.49343586,1847.5,1847.4,9.706]
[1746205663510,0.41138586,1847.5,1847.4,9.706]
[1746205666014,1.49343586,1847.5,1847.4,9.706]
[1746205666408,0.41138586,1847.5,1847.4,9.706]
[1746205668213,1.49343586,1847.5,1847.4,9.706]
[1746205668406,1.49343586,1847.5,1847.4,5.4161]
[1746205668611,1.49343586,1847.5,1847.4,6.49821]
[1746205670118,1.49343586,1847.5,1847.4,6.09231511]
[1746205671214,1.49343586,1847.5,1847.4,3.696]
[1746205671408,1.49343586,1847.5,1847.4,4.77811]
[1746205671608,1.49343586,1847.5,1847.4,3.696]
[1746205672117,1.08211,1847.4,1847.3,1.08216]
[1746205672316,1.08217,1847.3,1847.2,2.81818]
[1746205672628,3.08092586,1847.4,1847.3,1.08217]
[1746205673415,1.99878586,1847.4,1847.3,1.08217]
[1746205673617,3.08089586,1847.4,1847.3,1.08217]
[1746205674118,3.08089586,1847.4,1847.3,4.77817]
[1746205674619,0.41138586,1847.4,1847.3,4.77817]
[1746205675719,1.49349586,1847.4,1847.3,4.77817]
[1746205678515,0.41138586,1847.4,1847.3,4.77817]
[1746205678920,1.49349586,1847.4,1847.3,4.77817]
[1746205680022,0.41138586,1847.4,1847.3,4.77817]
[1746205680423,1.49349586,1847.4,1847.3,4.77817]
[1746205680919,1.49349586,1847.4,1847.3,6.49817]
[1746205681625,1.49349586,1847.4,1847.3,5.416]
[1746205681824,1.49349586,1847.4,1847.3,6.49817]
[1746205682023,1.49349586,1847.4,1847.3,5.416]
[1746205682323,1.49349586,1847.4,1847.3,6.49817]
[1746205683824,1.49349586,1847.4,1847.3,5.416]
[1746205684123,1.08217,1847.3,1847.2,6.02602]
[1746205684325,2.69787,1847.3,1847.2,6.02602]
[1746205684627,3.10925586,1847.3,1847.2,6.02602]
[1746205685125,3.10925586,1847.3,1847.2,9.72202]
[1746205685330,3.10925586,1847.3,1847.2,6.9038]
[1746205685624,3.10925586,1847.3,1847.2,3.696]
[1746205686226,1.08234,1847.0,1846.9,4.31236]
[1746205686728,1.49372586,1847.0,1846.9,3.23]
[1746205687130,1.49372586,1847.0,1846.9,3.696]
[1746205687427,1.49372586,1847.0,1846.9,4.7784]
[1746205687628,1.49372586,1847.0,1846.9,6.3825]
[1746205687823,1.49372586,1847.0,1846.9,5.3001]
[1746205688023,1.49372586,1847.0,1846.9,6.3825]
[1746205688224,1.49372586,1847.0,1846.9,5.3001]
[1746205689230,1.49372586,1847.0,1846.9,3.696]
[1746205689631,2.34042586,1847.0,1846.9,3.696]
[1746205689832,3.93762586,1847.0,1846.9,3.696]
[1746205691138,1.08246,1846.8,1846.7,1.7388]
[1746205691341,1.08252,1846.7,1846.6,4.8969]
[1746205691835,1.49390586,1846.7,1846.6,5.97948]
[1746205692038,1.49390586,1846.7,1846.6,7.56528]
[1746205692632,0.41138586,1846.7,1846.6,7.56528]
[1746205693339,1.08237,1847.0,1846.9,1.0824]
[1746205693541,11.5045864,1847.1,1847.0,1.08234]
[1746205693727,4.6077864,1847.1,1847.0,4.29014]
[1746205694130,4.6077864,1847.1,1847.0,7.98614]
[1746205694335,4.6077864,1847.1,1847.0,9.66384]
[1746205695042,4.6077864,1847.1,1847.0,6.45604]
[1746205695246,3.5254664,1847.1,1847.0,6.45604]
[1746205695634,3.5254664,1847.1,1847.0,9.66384]
[1746205695949,3.5254664,1847.1,1847.0,14.66384]
[1746205696843,3.5254664,1847.1,1847.0,16.29834]
[1746205697046,1.08224,1847.2,1847.1,1.08229]
[1746205697242,1.08229,1847.1,1847.0,3.696]
[1746205698755,6.39429,1847.4,1847.1,1.08226]
[1746205698940,1.08228,1847.2,1847.1,1.08226]
[1746205699356,1.08229,1847.1,1847.0,3.696]
[1746205699556,9.60939,1847.1,1847.0,3.28461414]
[1746205699757,14.60939,1847.1,1847.0,1.71182763]
[1746205700148,1.08258,1846.6,1846.5,5.09182]
[1746205700360,1.08258,1846.6,1846.5,3.2078]
[1746205700753,1.08276,1846.3,1846.2,4.8652]
[1746205700946,1.08276,1846.3,1846.2,15.60352745]
[1746205701248,1.08276,1846.3,1846.2,17.64212745]
[1746205701951,1.08276,1846.3,1846.2,14.43432745]
[1746205702254,6.08276,1846.3,1846.2,10.73832745]
[1746205702455,7.82766,1846.3,1846.2,10.73832745]
[1746205702860,2.82766,1846.3,1846.2,10.73832745]
[1746205703058,7.82766,1846.3,1846.2,10.73832745]
[1746205703651,7.82766,1846.3,1846.2,8.40746745]
[1746205704560,7.82766,1846.3,1846.2,7.19504745]
[1746205704858,7.82766,1846.3,1846.2,4.80018745]
[1746205705156,7.82766,1846.3,1846.2,2.33677745]
[1746205705349,13.64766,1846.3,1846.2,0.15074745]
[1746205705543,13.64766,1846.3,1845.3,67.04020957]
[1746205705544,1.08322,1845.5,1845.4,0.7929]
[1746205706155,4.29102,1845.5,1845.4,3.696]
[1746205706751,1.08322,1845.5,1845.4,3.696]
[1746205707155,1.08312,1845.7,1845.4,3.696]
[1746205707364,1.08317,1845.6,1845.5,0.8521]
[1746205707854,1.08314,1845.7,1845.5,1.93532]
[1746205708159,1.08314,1845.7,1845.5,5.63132]
[1746205708363,1.08317,1845.6,1845.5,4.5481]
[1746205708662,1.08315,1845.7,1845.5,5.63129]
[1746205708857,1.08317,1845.6,1845.5,4.5481]
[1746205709058,1.08317,1845.6,1845.5,3.696]
[1746205709555,2.78127,1845.6,1845.5,3.696]
[1746205709749,1.08317,1845.6,1845.5,3.696]
[1746205709956,7.98192,1845.7,1845.5,3.696]
[1746205710156,7.98192,1845.7,1845.5,4.77918]
[1746205710361,6.8988,1845.7,1845.5,4.77918]
[1746205710664,1.08317,1845.6,1845.5,3.696]
[1746205710962,2.78127,1845.6,1845.5,3.696]
[1746205712360,2.70746,1846.0,1845.5,3.696]
[1746205712361,0.02,1846.1,1845.5,16.5948]
[1746205712560,5.64512227,1846.7,1846.4,1.0827]
[1746205712759,6.72766227,1846.7,1846.4,4.2905]
[1746205712959,1.08261,1846.6,1846.4,4.2905]
[1746205713154,4.6081064,1846.5,1846.4,3.696]
[1746205713460,3.5254664,1846.5,1846.4,4.7787]
[1746205713964,4.6081064,1846.5,1846.4,6.9038]
[1746205714156,3.5254664,1846.5,1846.4,7.9865]
[1746205716364,1.08258,1846.6,1846.5,1.08264]
[1746205716566,1.08258,1846.6,1846.4,6.9038]
[1746205716769,1.08257,1846.7,1846.5,1.0826]
[1746205717266,1.08257,1846.7,1846.5,4.7786]
[1746205717568,1.08257,1846.7,1846.6,1.6268]
[1746205718169,2.73847,1846.7,1846.6,1.6268]
[1746205719967,3.00934057,1846.7,1846.6,1.6268]
[1746205720469,1.08258,1846.6,1846.5,3.696]
[1746205720770,2.78438,1846.6,1846.5,3.696]
[1746205721067,2.78438,1846.6,1846.5,5.2901]
[1746205726372,8.05525057,1846.6,1846.5,1.91444]
[1746205726563,1.08281,1846.2,1846.1,1.6939]
[1746205727767,1.08287,1846.1,1846.0,3.696]
[1746205728067,2.72567,1846.1,1846.0,3.696]
[1746205728374,1.08305,1845.8,1845.7,1.7041]
[1746205728763,1.08304,1845.9,1845.7,6.7041]
[1746205728963,1.08304,1845.9,1845.8,4.29085]
[1746205729172,1.08304,1845.9,1845.8,6.9038]
[1746205729569,1.08304,1845.9,1845.8,3.696]
[1746205730476,1.08298,1846.0,1845.8,7.98685]
[1746205730670,6.90179057,1846.3,1846.0,1.08292]
[1746205730869,1.08281,1846.2,1846.1,3.3508]
[1746205733175,1.35368057,1846.2,1846.1,3.3508]
[1746205733373,3.924,1846.3,1846.0,3.696]
[1746205733374,1.35374057,1846.1,1846.0,3.696]
[1746205733575,3.04184057,1846.1,1846.0,3.696]
[1746205733975,6.24964057,1846.1,1846.0,3.696]
[1746205734275,3.04184057,1846.1,1846.0,3.696]
[1746205735274,6.24964057,1846.1,1846.0,3.696]
[1746205735580,1.08287,1846.1,1846.0,3.696]
[1746205735765,1.08287,1846.1,1846.0,4.5694]
[1746205735966,1.08287,1846.1,1846.0,6.2309]
[1746205736576,1.35374057,1846.1,1846.0,3.696]
[1746205736777,2.94744057,1846.1,1846.0,3.696]
[1746205737578,3.75674057,1846.1,1846.0,3.696]
[1746205740375,1.35374057,1846.1,1846.0,3.696]
[1746205740582,6.35374057,1846.1,1846.0,3.696]
[1746205740881,8.81734057,1846.1,1846.0,3.696]
[1746205741080,1.08311,1845.7,1845.6,2.5314]
[1746205743279,1.08309,1845.8,1845.7,1.08311]
[1746205743484,1.08309,1845.8,1845.7,1.6465]
[1746205744084,1.08309,1845.8,1845.7,5.3425]
[1746205744576,1.08304,1845.9,1845.8,1.08305]
[1746205744880,1.08304,1845.9,1845.8,0.8145]
[1746205745073,1.08304,1845.9,1845.8,4.5105]
[1746205745981,1.08304,1845.9,1845.8,6.157]
[1746205746577,1.08304,1845.9,1845.8,7.24005]
[1746205746774,8.53065057,1846.2,1845.8,6.157]
[1746205746978,1.08294,1846.0,1845.9,2.77645]
[1746205747177,1.08294,1846.0,1845.9,1.08295]
[1746205748083,1.08294,1846.0,1845.9,4.77895]
[1746205748284,1.08294,1846.0,1845.9,3.696]
[1746205750890,1.07718464,1846.0,1845.9,3.696]
[1746205754686,1.34805521,1846.0,1845.9,3.696]
[1746205754892,9.55585521,1846.0,1845.9,0.93762]
[1746205755088,9.55585521,1846.0,1845.3,9.1238]
[1746205755089,1.08328,1845.4,1845.3,4.8876]
[1746205755390,1.08326,1845.5,1845.3,5.9709]
[1746205755690,1.08328,1845.4,1845.3,5.9709]
[1746205756182,1.08328,1845.4,1845.3,9.6669]
[1746205756379,1.08328,1845.5,1845.3,9.6669]
[1746205756583,1.08328,1845.4,1845.3,9.6669]
[1746205756894,1.08328,1845.4,1845.3,8.5836]
[1746205757782,1.08328,1845.4,1845.3,10.195]
[1746205759189,1.08328,1845.4,1845.3,11.27834]
[1746205760287,1.08328,1845.4,1845.3,10.195]
[1746205762188,1.08328,1845.4,1845.3,11.27834]
[1746205763890,1.08328,1845.4,1845.3,10.195]
[1746205764285,1.08328,1845.4,1845.3,16.27834]
[1746205764486,1.08328,1845.4,1845.3,10.195]
[1746205765195,1.08328,1845.4,1845.3,11.27834]
[1746205765685,1.4975918,1845.4,1845.3,11.27834]
[1746205766392,1.4975918,1845.4,1845.3,10.195]
[1746205766592,1.4975918,1845.4,1845.3,11.27834]
[1746205767188,1.4975918,1845.4,1845.3,10.195]
[1746205768096,1.4975918,1845.4,1845.3,11.27834]
[1746205768791,1.4975918,1845.4,1845.3,10.195]
[1746205769096,0.4143118,1845.4,1845.3,10.195]
[1746205771099,0.41468567,1845.4,1845.3,10.195]
[1746205773597,0.41468567,1845.4,1845.3,8.5152]
[1746205774003,0.68555624,1845.4,1845.3,6.9038]
[1746205774298,2.27035624,1845.4,1845.3,6.9038]
[1746205775798,7.27035624,1845.4,1845.3,6.9038]
[1746205776395,11.06435624,1845.4,1845.3,6.9038]
[1746205776901,11.5034791,1845.4,1845.3,3.696]
[1746205777204,14.7112791,1845.4,1844.6,10.38982971]
[1746205777397,1.644,1845.3,1844.7,1.6042]
[1746205777700,0.27087057,1845.2,1844.7,3.3222]
[1746205777900,6.2523,1845.1,1844.8,1.6042]
[1746205778102,2.32955624,1845.0,1844.8,5.3002]
[1746205778305,1.644,1844.9,1844.8,3.696]
[1746205778697,2.05868567,1844.9,1844.8,3.696]
[1746205779205,7.32955624,1844.9,1844.8,3.696]
[1746205779703,10.53735624,1844.9,1844.8,3.696]
[1746205779898,5.53735624,1844.9,1844.8,3.696]
[1746205780098,10.53735624,1844.9,1844.8,3.696]
[1746205780495,10.53735624,1844.9,1844.4,7.18202971]
[1746205780697,3.2078,1844.6,1844.4,7.18202971]
[1746205780998,7.1427,1844.5,1844.4,7.18202971]
[1746205781298,7.1427,1844.5,1844.2,3.2078]
[1746205781502,3.47867057,1844.4,1844.0,3.55511588]
[1746205781694,1.7168,1844.3,1844.0,3.55511588]
[1746205782205,1.7168,1844.3,1844.0,7.25111588]
[1746205782608,1.98767057,1844.3,1844.0,7.25111588]
[1746205782809,0.68555624,1844.2,1844.0,7.25111588]
[1746205783006,1.69,1844.1,1844.0,7.25111588]
[1746205783207,2.10468567,1844.1,1844.0,7.25111588]
[1746205783708,2.10468567,1844.1,1844.0,4.04331588]
[1746205783909,0.41468567,1844.1,1844.0,4.04331588]
[1746205785008,2.10468567,1844.1,1844.0,4.04331588]
[1746205785410,0.41468567,1844.1,1844.0,4.04331588]
[1746205786204,0.41468567,1844.1,1844.0,12.25111588]
[1746205786411,0.41468567,1844.1,1844.0,7.25111588]
[1746205786612,9.0155664,1844.5,1844.0,12.25111588]
[1746205786811,9.0155664,1844.5,1844.1,3.3308]
[1746205787012,0.41250491,1844.4,1844.2,1.5875]
[1746205787211,2.10660491,1844.4,1844.2,1.5875]
[1746205787413,0.41250491,1844.3,1844.2,1.5875]
[1746205787614,2.37747548,1844.3,1844.0,7.25111588]
[1746205788111,0.41250491,1844.2,1844.0,7.25111588]
[1746205788415,1.96497057,1844.1,1844.0,7.25111588]
[1746205788605,2.37747548,1844.1,1844.0,7.25111588]
[1746205790315,0.41250491,1844.1,1844.0,7.25111588]
[1746205790705,2.12060491,1844.1,1844.0,7.25111588]